bitfinex-derivatives/quotes_SOLF0:USTF0_20250215
["timestamp","ask_amount","ask_price","bid_price","bid_amount"]
[1739608825831,1.61254818,196.37,196.34,8.05741134]
[1739608826032,1.4971,196.38,196.34,8.05741134]
[1739608826432,0.03563454,196.37,196.34,8.05741134]
[1739608827532,0.03563454,196.37,196.32,8.05741134]
[1739608827733,1.4971,196.38,196.32,8.05741134]
[1739608827934,0.03907033,196.36,196.32,8.05741134]
[1739608829036,0.03907033,196.36,196.3,13.15071134]
[1739608829231,13.14911134,196.37,196.3,13.15071134]
[1739608829534,0.0361032,196.35,196.3,13.15071134]
[1739608830234,0.0361032,196.35,196.3,8.05741134]
[1739608831236,5.1283032,196.35,196.3,8.05741134]
[1739608831424,13.18571454,196.35,196.3,8.05741134]
[1739608831631,13.18571454,196.35,196.28,8.05741134]
[1739608831830,13.14961134,196.35,196.28,8.05741134]
[1739608832030,0.03506356,196.33,196.28,8.05741134]
[1739608832837,0.03506356,196.33,196.28,13.15131134]
[1739608833834,0.03506356,196.33,196.28,8.05741134]
[1739608834138,5.0929,196.32,196.28,8.05741134]
[1739608834438,0.03506356,196.33,196.28,8.05741134]
[1739608834835,0.03506356,196.33,196.3,8.05741134]
[1739608835036,0.03506356,196.33,196.32,8.05741134]
[1739608836640,0.03506356,196.33,196.32,13.15031134]
[1739608838539,0.03506356,196.33,196.32,8.05741134]
[1739608840242,0.03506356,196.33,196.3,8.05741134]
[1739608842646,0.03506356,196.33,196.3,13.15081134]
[1739608849051,0.03506356,196.33,196.3,8.05741134]
[1739608849255,0.03506356,196.33,196.23,50.23954857]
[1739608849256,0.03506356,196.33,196.28,8.05741134]
[1739608849553,5.093,196.32,196.28,8.05741134]
[1739608849756,5.093,196.32,196.26,8.05741134]
[1739608850651,13.1851749,196.33,196.26,8.05741134]
[1739608852055,5.093,196.32,196.26,13.15171134]
[1739608852256,8.0924749,196.33,196.26,13.15171134]
[1739608852556,13.1851749,196.33,196.27,5.0942]
[1739608852756,13.1851749,196.33,196.26,8.05741134]
[1739608853450,5.0931,196.32,196.26,8.05741134]
[1739608854757,0.03506356,196.33,196.28,8.05741134]
[1739608855057,0.03506356,196.33,196.3,8.05741134]
[1739608856156,0.03506356,196.33,196.3,13.15071134]
[1739608857454,0.03506356,196.33,196.31,5.0931]
[1739608857657,0.03506356,196.33,196.32,8.05741134]
[1739608861658,0.03506356,196.33,196.32,13.15031134]
[1739608865067,9.55491134,196.43,196.32,8.05741134]
[1739608865264,9.55491134,196.43,196.37,8.05741134]
[1739608865560,5.0906,196.41,196.37,8.05741134]
[1739608865759,9.55491134,196.43,196.37,8.05741134]
[1739608866263,0.03698105,196.42,196.38,0.03378603]
[1739608868367,5.12728105,196.42,196.38,0.03378603]
[1739608868560,8.05741134,196.41,196.38,0.03378603]
[1739608870968,13.14801134,196.41,196.38,0.03378603]
[1739608871263,8.05741134,196.41,196.38,0.03378603]
[1739608871468,0.03698105,196.42,196.38,0.03378603]
[1739608874367,8.05741134,196.41,196.38,0.03378603]
[1739608876068,5.0911,196.4,196.38,0.03378603]
[1739608876667,5.0911,196.39,196.38,0.03378603]
[1739608877465,13.14821134,196.41,196.38,0.03378603]
[1739608878672,8.05741134,196.41,196.38,0.03378603]
[1739608878874,0.03698105,196.42,196.38,0.03378603]
[1739608880779,5.12758105,196.42,196.38,0.03378603]
[1739608881376,5.0906,196.41,196.38,0.03378603]
[1739608881575,13.14801134,196.41,196.38,0.03378603]
[1739608881776,8.05741134,196.41,196.38,0.03378603]
[1739608882073,13.14801134,196.41,196.38,0.03378603]
[1739608883571,0.03698105,196.42,196.38,0.03378603]
[1739608883977,0.03698105,196.42,196.38,5.12508603]
[1739608884276,0.03698105,196.42,196.38,0.03378603]
[1739608887376,0.03698105,196.42,196.39,8.05741134]
[1739608889179,0.03698105,196.42,196.39,13.14831134]
[1739608889382,0.03698105,196.42,196.39,8.05741134]
[1739608890181,0.03698105,196.42,196.4,5.0908]
[1739608890475,0.03698105,196.42,196.39,8.05741134]
[1739608890684,0.03698105,196.42,196.39,13.14851134]
[1739608891279,0.03698105,196.42,196.39,8.05741134]
[1739608891485,0.03698105,196.42,196.41,13.14801134]
[1739608899396,0.03698105,196.42,196.41,8.05741134]
[1739608900095,0.03698105,196.42,196.41,13.14801134]
[1739608901400,0.03698105,196.42,196.41,8.05741134]
[1739608901596,0.03698105,196.42,196.39,8.05741134]
[1739608901997,0.03698105,196.42,196.39,13.14851134]
[1739608902600,0.03698105,196.42,196.38,0.03378603]
[1739608904202,5.0909,196.4,196.38,0.03378603]
[1739608904401,8.05741134,196.41,196.38,0.03378603]
[1739608905198,5.0911,196.39,196.38,0.03378603]
[1739608905597,8.05741134,196.41,196.33,8.05741134]
[1739608905799,1.6326,196.4,196.33,8.05741134]
[1739608906806,0.03809094,196.38,196.33,8.05741134]
[1739608907008,5.12949094,196.38,196.33,8.05741134]
[1739608907400,0.03809094,196.38,196.33,13.15001134]
[1739608908804,0.03809094,196.38,196.33,8.05741134]
[1739608909703,8.05741134,196.37,196.31,8.05741134]
[1739608910405,13.14901134,196.37,196.31,13.15041134]
[1739608910605,5.0916,196.37,196.31,13.15041134]
[1739608911706,0.03809094,196.38,196.31,13.15041134]
[1739608912006,5.0919,196.36,196.31,8.05741134]
[1739608912311,5.0922,196.35,196.31,8.05741134]
[1739608912513,0.03809094,196.38,196.33,8.05741134]
[1739608912713,11.23471134,196.39,196.33,8.05741134]
[1739608912913,5.12500821,196.37,196.33,8.05741134]
[1739608913113,5.12500821,196.37,196.31,13.15051134]
[1739608913611,8.09061955,196.37,196.31,8.05741134]
[1739608913913,8.09061955,196.37,196.29,13.15091134]
[1739608915113,5.0922,196.35,196.29,13.15091134]
[1739608915309,8.05741134,196.35,196.29,8.05741134]
[1739608915713,5.0929,196.32,196.29,8.05741134]
[1739608916110,0.03362181,196.32,196.29,8.05741134]
[1739608919718,0.03362181,196.32,196.28,50.9584794]
[1739608920219,5.12652181,196.32,196.28,50.9584794]
[1739608921414,0.03362181,196.32,196.28,50.9584794]
[1739608921620,5.0936,196.3,196.28,50.9584794]
[1739608922821,13.15061134,196.31,196.28,50.9584794]
[1739608923023,5.0932,196.31,196.28,50.9584794]
[1739608927122,5.0934,196.3,196.28,50.9584794]
[1739608927924,13.15111134,196.29,196.23,8.05741134]
[1739608928425,0.03516548,196.28,196.23,8.05741134]
[1739608928825,0.03516548,196.28,196.23,13.15271134]
[1739608930623,0.03516548,196.28,196.23,8.05741134]
[1739608930827,0.03516548,196.28,196.24,5.095]
[1739608931423,5.12916548,196.28,196.23,13.15271134]
[1739608937230,5.0943,196.27,196.23,13.15271134]
[1739608937629,0.03516548,196.28,196.23,13.15271134]
[1739608937828,5.0942,196.27,196.23,13.15271134]
[1739608938529,0.03516548,196.28,196.23,13.15271134]
[1739608939929,0.03516548,196.28,196.21,8.05741134]
[1739608940126,8.05741134,196.29,196.21,8.05741134]
[1739608940325,0.03234784,196.26,196.21,8.05741134]
[1739608940533,5.12704784,196.26,196.21,8.05741134]
[1739608940731,0.03234784,196.26,196.21,8.05741134]
[1739608941124,0.03234784,196.26,196.21,13.15291134]
[1739608942727,0.03234784,196.26,196.21,8.05741134]
[1739608944635,0.03234784,196.26,196.21,13.15301134]
[1739608944936,0.03234784,196.26,196.23,8.05741134]
[1739608945137,13.15131134,196.29,196.23,8.05741134]
[1739608945327,0.03387118,196.26,196.23,8.05741134]
[1739608947339,0.03387118,196.26,196.23,13.15261134]
[1739608951637,0.03387118,196.26,196.23,8.05741134]
[1739608951839,0.03387118,196.26,196.25,13.15211134]
[1739608954141,5.0929,196.32,196.27,5.094]
[1739608954342,5.0929,196.32,196.29,8.05741134]
[1739608954538,1.5865,196.33,196.29,8.05741134]
[1739608954745,8.05741134,196.37,196.31,8.05741134]
[1739608954937,11.31721134,196.39,196.31,8.05741134]
[1739608955439,0.03837927,196.37,196.33,0.03514871]
[1739608956146,8.09579061,196.37,196.33,0.03514871]
[1739608957649,13.18749061,196.37,196.33,0.03514871]
[1739608958949,0.03837927,196.37,196.33,8.09256005]
[1739608960752,0.03837927,196.37,196.33,13.18506005]
[1739608961148,0.03837927,196.37,196.35,8.05741134]
[1739608962555,0.03837927,196.37,196.36,5.0919]
[1739608963462,0.03837927,196.37,196.35,8.05741134]
[1739608963661,0.03837927,196.37,196.35,13.14951134]
[1739608964656,0.03837927,196.37,196.35,8.05741134]
[1739608968560,0.03837927,196.37,196.33,8.09256005]
[1739608968760,0.03837927,196.37,196.33,0.03514871]
[1739608968960,8.09579061,196.37,196.33,0.03514871]
[1739608971067,0.03837927,196.37,196.33,0.03514871]
[1739608972066,0.03837927,196.37,196.33,8.09256005]
[1739608972964,0.03837927,196.37,196.35,8.05741134]
[1739608974070,0.03837927,196.37,196.35,13.14951134]
[1739608974564,0.03837927,196.37,196.35,8.05741134]
[1739608974771,0.03837927,196.37,196.36,5.0919]
[1739608978273,0.03837927,196.37,196.35,8.05741134]
[1739608980072,0.03837927,196.37,196.36,5.0919]
[1739608980973,7.927e-05,196.37,196.36,5.0919]
[1739608981172,8.05741134,196.47,196.41,5.0905]
[1739608981374,8.05741134,196.47,196.41,13.14791134]
[1739608982071,5.0895,196.46,196.41,13.14791134]
[1739608982268,0.03249739,196.45,196.42,0.03422076]
[1739608982667,5.0898,196.44,196.42,0.03422076]
[1739608985577,8.08990873,196.45,196.42,0.03422076]
[1739608985774,5.0901,196.43,196.42,0.03422076]
[1739608990584,0.03249739,196.45,196.42,0.03422076]
[1739608992282,5.0901,196.44,196.42,0.03422076]
[1739608993283,0.03249739,196.45,196.42,0.03422076]
[1739608994882,0.03249739,196.45,196.42,5.12452076]
[1739608997388,0.03249739,196.45,196.44,5.0898]
[1739608997789,1.6264,196.54,196.43,8.05741134]
[1739608997995,5.0875,196.53,196.49,8.05741134]
[1739608998986,0.03679602,196.53,196.49,13.17885931]
[1739608999592,0.03679602,196.53,196.51,8.05741134]
[1739609001293,0.03679602,196.53,196.52,5.0877]
[1739609002293,0.03679602,196.53,196.51,8.05741134]
[1739609003392,0.03679602,196.53,196.51,13.14531134]
[1739609007401,0.03679602,196.53,196.51,8.05741134]
[1739609007708,0.03679602,196.53,196.52,5.0877]
[1739609008604,0.03679602,196.53,196.51,8.05741134]
[1739609009703,0.03679602,196.53,196.52,5.0877]
[1739609019610,5.0857,196.6,196.51,8.05741134]
[1739609019811,5.0857,196.6,196.57,8.05741134]
[1739609020008,1.6301,196.64,196.57,8.05741134]
[1739609020614,5.0852,196.62,196.57,13.14381134]
[1739609020815,0.03916111,196.62,196.59,0.03767915]
[1739609021314,5.0854,196.61,196.59,0.03767915]
[1739609021819,5.0857,196.6,196.59,0.03767915]
[1739609022819,5.0854,196.61,196.59,0.03767915]
[1739609023519,0.03916111,196.62,196.59,0.03767915]
[1739609023714,5.0857,196.6,196.59,0.03767915]
[1739609023914,0.03916111,196.62,196.55,8.05741134]
[1739609024415,8.05741134,196.61,196.55,8.05741134]
[1739609024720,8.05741134,196.61,196.53,8.05741134]
[1739609024914,5.0859,196.6,196.55,0.03588096]
[1739609025121,8.09020918,196.59,196.55,0.03588096]
[1739609025420,1.5502,196.58,196.55,0.03588096]
[1739609026024,5.0866,196.57,196.55,0.03588096]
[1739609028517,5.0867,196.56,196.55,0.03588096]
[1739609029716,1.5502,196.58,196.53,8.05741134]
[1739609029920,5.0872,196.54,196.51,8.05741134]
[1739609030321,8.05741134,196.57,196.51,8.05741134]
[1739609030522,1.5825,196.56,196.51,8.05741134]
[1739609030920,0.03216986,196.55,196.52,0.03769701]
[1739609031116,5.0875,196.54,196.52,0.03769701]
[1739609031319,0.03216986,196.55,196.52,0.03769701]
[1739609032025,5.11916986,196.55,196.52,0.03769701]
[1739609037428,5.0873,196.54,196.52,0.03769701]
[1739609039525,0.03216986,196.55,196.52,0.03769701]
[1739609039742,5.0875,196.53,196.52,0.03769701]
[1739609040230,0.03216986,196.55,196.52,0.03769701]
[1739609040531,5.0873,196.54,196.52,0.03769701]
[1739609041729,5.0875,196.53,196.52,0.03769701]
[1739609042025,8.0895812,196.55,196.49,8.05741134]
[1739609042230,8.0895812,196.55,196.39,28.23927576]
[1739609042231,8.05741134,196.53,196.47,8.05741134]
[1739609042427,8.05741134,196.53,196.45,8.05741134]
[1739609043023,5.0886,196.49,196.45,8.05741134]
[1739609043227,5.0886,196.49,196.47,0.03156427]
[1739609045830,5.0883,196.5,196.47,8.08897561]
[1739609046034,0.03649889,196.51,196.47,8.08897561]
[1739609046633,5.12469889,196.51,196.47,8.08897561]
[1739609047235,0.03649889,196.51,196.49,8.05741134]
[1739609049836,0.03649889,196.51,196.49,13.14591134]
[1739609050744,0.03649889,196.51,196.5,5.0883]
[1739609058450,8.05741134,196.63,196.49,8.05741134]
[1739609058646,8.05741134,196.61,196.55,8.05741134]
[1739609058850,1.5317,196.6,196.55,8.05741134]
[1739609059544,5.12404784,196.59,196.56,0.03475588]
[1739609063048,5.0862,196.58,196.56,0.03475588]
[1739609063452,8.09555918,196.59,196.53,8.05741134]
[1739609063646,5.0866,196.57,196.53,8.05741134]
[1739609063846,8.09555918,196.59,196.51,8.05741134]
[1739609064047,8.05741134,196.57,196.51,8.05741134]
[1739609064647,8.05741134,196.55,196.52,0.03330728]
[1739609064846,8.05741134,196.55,196.49,8.05741134]
[1739609065046,1.6043,196.54,196.52,0.03330728]
[1739609065345,8.05741134,196.53,196.47,8.05741134]
[1739609066447,0.03856989,196.52,196.47,8.05741134]
[1739609067052,5.0881,196.51,196.47,8.05741134]
[1739609068652,0.03856989,196.52,196.47,8.05741134]
[1739609068953,8.05741134,196.51,196.45,8.05741134]
[1739609069251,8.05741134,196.49,196.43,8.05741134]
[1739609069651,0.0372271,196.48,196.43,8.05741134]
[1739609069846,5.089,196.47,196.43,8.05741134]
[1739609070044,0.0372271,196.48,196.43,8.05741134]
[1739609070448,1.6736271,196.48,196.43,8.05741134]
[1739609070747,5.0891,196.47,196.43,8.05741134]
[1739609074753,1.6736271,196.48,196.43,8.05741134]
[1739609076057,5.0896,196.45,196.43,8.05741134]
[1739609076258,1.6736271,196.48,196.43,8.05741134]
[1739609076557,1.5813,196.47,196.43,8.05741134]
[1739609076956,9.63871134,196.47,196.42,49.20068512]
[1739609077460,1.5742,196.46,196.42,49.20068512]
[1739609077659,5.0899,196.44,196.42,49.20068512]
[1739609078060,5.0901,196.43,196.42,49.20068512]
[1739609079765,5.0898,196.44,196.42,49.20068512]
[1739609081060,1.5742,196.46,196.42,49.20068512]
[1739609081260,5.0901,196.43,196.42,49.20068512]
[1739609082168,5.0898,196.45,196.42,49.20068512]
[1739609083461,5.0898,196.44,196.42,49.20068512]
[1739609083661,8.05741134,196.45,196.42,49.20068512]
[1739609083966,5.0906,196.42,196.37,8.05741134]
[1739609084163,8.05741134,196.43,196.37,8.05741134]
[1739609084458,0.03611595,196.41,196.37,8.05741134]
[1739609084654,5.0909,196.4,196.37,8.05741134]
[1739609086664,5.0909,196.4,196.35,13.14951134]
[1739609087365,0.03611595,196.41,196.35,8.05741134]
[1739609087666,8.09352729,196.41,196.35,8.05741134]
[1739609089066,13.18432729,196.41,196.35,13.14951134]
[1739609089973,13.18432729,196.41,196.35,8.05741134]
[1739609090264,5.12691595,196.41,196.37,5.0916]
[1739609090465,5.12691595,196.41,196.37,13.14901134]
[1739609094266,0.03611595,196.41,196.39,8.05741134]
[1739609094467,5.0898,196.44,196.39,13.14841134]
[1739609094668,0.03773457,196.42,196.39,13.14841134]
[1739609096168,0.03773457,196.42,196.39,8.05741134]
[1739609097366,0.03773457,196.42,196.39,13.14841134]
[1739609098362,0.03773457,196.42,196.4,5.0908]
[1739609098568,0.03773457,196.42,196.41,8.05741134]
[1739609100071,0.03773457,196.42,196.41,13.14801134]
[1739609100673,5.0884,196.5,196.41,8.05741134]
[1739609100977,5.0884,196.5,196.45,8.05741134]
[1739609101171,5.088,196.51,196.46,5.0893]
[1739609101971,0.03677877,196.5,196.47,0.03630313]
[1739609102277,0.03677877,196.5,196.47,8.09371447]
[1739609103073,0.03677877,196.5,196.49,8.05741134]
[1739609104774,0.03677877,196.5,196.47,8.09371447]
[1739609105572,5.12507877,196.5,196.47,8.09371447]
[1739609105772,0.03677877,196.5,196.47,0.03630313]
[1739609107380,5.0886,196.49,196.47,0.03630313]
[1739609107578,8.05741134,196.49,196.47,0.03630313]
[1739609108178,5.0888,196.48,196.47,0.03630313]
[1739609112384,0.03677877,196.5,196.47,0.03630313]
[1739609114282,0.03677877,196.5,196.47,13.18261447]
[1739609115576,0.03677877,196.5,196.47,8.09371447]
[1739609116073,0.03677877,196.5,196.47,0.03630313]
[1739609116884,0.03677877,196.5,196.47,5.12530313]
[1739609119485,0.03677877,196.5,196.47,0.03630313]
[1739609120084,5.0888,196.48,196.47,0.03630313]
[1739609126491,5.0899,196.44,196.39,8.05741134]
[1739609126691,8.05741134,196.44,196.37,8.05741134]
[1739609127097,5.0907,196.41,196.37,8.05741134]
[1739609127291,8.05741134,196.42,196.36,48.69803697]
[1739609127693,5.0911,196.39,196.36,48.69803697]
[1739609127892,8.05741134,196.4,196.36,48.69803697]
[1739609128296,5.0911,196.39,196.36,48.69803697]
[1739609130502,5.0916,196.37,196.33,8.05741134]
[1739609130804,8.05741134,196.38,196.33,8.05741134]
[1739609131000,0.0325294,196.37,196.33,8.05741134]
[1739609132604,0.0325294,196.37,196.31,8.05741134]
[1739609133197,8.05741134,196.36,196.31,8.05741134]
[1739609133700,5.0922,196.35,196.31,8.05741134]
[1739609134307,5.1243294,196.37,196.31,13.15051134]
[1739609134509,0.0325294,196.37,196.31,13.15051134]
[1739609135204,5.0919,196.36,196.31,8.05741134]
[1739609137609,0.0325294,196.37,196.31,8.05741134]
[1739609137810,8.05741134,196.36,196.29,8.05741134]
[1739609138610,5.0927,196.33,196.29,8.05741134]
[1739609139007,5.12755502,196.33,196.29,8.05741134]
[1739609140116,0.03485502,196.33,196.29,8.05741134]
[1739609140816,5.12765502,196.33,196.29,8.05741134]
[1739609142316,5.12765502,196.33,196.28,5.0938]
[1739609143313,0.03485502,196.33,196.28,8.05741134]
[1739609144816,0.03485502,196.33,196.28,13.15111134]
[1739609146317,0.03485502,196.33,196.28,8.05741134]
[1739609147014,0.03485502,196.33,196.28,13.15111134]
[1739609147716,0.03485502,196.33,196.29,5.0937]
[1739609150520,0.03485502,196.33,196.3,8.05741134]
[1739609150818,8.05741134,196.36,196.3,8.05741134]
[1739609151011,0.03342048,196.33,196.3,8.05741134]
[1739609151617,1.5774,196.4,196.32,8.05741134]
[1739609151818,8.05741134,196.43,196.37,8.05741134]
[1739609152217,5.0907,196.41,196.37,8.05741134]
[1739609153022,5.091,196.4,196.37,0.03397498]
[1739609155922,8.09399251,196.41,196.37,0.03397498]
[1739609156122,5.0911,196.39,196.37,0.03397498]
[1739609158219,8.09399251,196.41,196.37,0.03397498]
[1739609158923,5.0912,196.39,196.37,0.03397498]
[1739609159124,8.09399251,196.41,196.37,0.03397498]
[1739609159726,13.18459251,196.41,196.37,0.03397498]
[1739609160421,5.0909,196.4,196.37,0.03397498]
[1739609161122,5.0914,196.38,196.37,0.03397498]
[1739609162225,5.0921,196.36,196.3,5.0934]
[1739609162427,8.05741134,196.34,196.29,8.05741134]
[1739609162622,8.05741134,196.36,196.29,8.05741134]
[1739609163030,8.05741134,196.36,196.31,5.0932]
[1739609163529,0.03640027,196.35,196.31,5.0932]
[1739609166230,0.03640027,196.35,196.29,8.05741134]
[1739609166430,5.12860027,196.35,196.3,5.0934]
[1739609169328,5.093,196.32,196.27,8.05741134]
[1739609169732,0.03516534,196.31,196.27,8.05741134]
[1739609171238,5.12846534,196.31,196.27,8.05741134]
[1739609171437,0.03516534,196.31,196.25,8.05741134]
[1739609171841,5.0935,196.3,196.25,8.05741134]
[1739609172238,0.03516534,196.31,196.25,8.05741134]
[1739609172439,5.0938,196.29,196.25,8.05741134]
[1739609172738,0.03516534,196.31,196.25,13.15211134]
[1739609173837,5.12856534,196.31,196.26,5.0945]
[1739609175139,0.03516534,196.31,196.27,13.15151134]
[1739609175540,0.03516534,196.31,196.27,8.05741134]
[1739609176240,0.03516534,196.31,196.29,5.0936]
[1739609177245,0.03516534,196.31,196.3,5.0934]
[1739609180941,0.03516534,196.31,196.29,13.15111134]
[1739609181447,0.03516534,196.31,196.29,8.05741134]
[1739609182844,0.03516534,196.31,196.27,8.05741134]
[1739609184243,0.03516534,196.31,196.3,5.0934]
[1739609184942,0.03516534,196.31,196.29,13.15101134]
[1739609186044,0.03516534,196.31,196.29,8.05741134]
[1739609186248,0.03516534,196.31,196.28,5.0939]
[1739609187249,0.03516534,196.31,196.27,8.05741134]
[1739609187549,0.03516534,196.31,196.25,13.15211134]
[1739609189153,0.03516534,196.31,196.27,5.0942]
[1739609189452,0.03516534,196.31,196.29,8.05741134]
[1739609189647,8.05741134,196.35,196.29,8.05741134]
[1739609189852,0.03236161,196.32,196.27,13.15141134]
[1739609190447,0.03236161,196.32,196.28,5.0939]
[1739609194853,0.03236161,196.32,196.27,8.05741134]
[1739609195048,0.03236161,196.32,196.29,5.0937]
[1739609201754,0.03236161,196.32,196.3,5.0934]
[1739609203457,0.03236161,196.32,196.29,5.0937]
[1739609203651,0.03236161,196.32,196.27,8.05741134]
[1739609204051,5.0932,196.31,196.25,8.05741134]
[1739609204455,0.03396991,196.3,196.25,13.15191134]
[1739609205655,0.03396991,196.3,196.25,8.05741134]
[1739609205858,5.12746991,196.3,196.26,5.0944]
[1739609207557,0.03396991,196.3,196.26,5.0944]
[1739609207758,0.03396991,196.3,196.27,5.0941]
[1739609210156,0.03396991,196.3,196.26,5.0945]
[1739609211154,0.03396991,196.3,196.25,8.05741134]
[1739609211457,0.03396991,196.3,196.27,5.094]
[1739609213654,0.03396991,196.3,196.25,8.05741134]
[1739609213854,0.03396991,196.3,196.26,5.0945]
[1739609217057,0.03396991,196.3,196.25,5.0947]
[1739609217354,0.03396991,196.3,196.23,8.05741134]
[1739609217559,8.05741134,196.29,196.24,5.095]
[1739609218560,5.12746991,196.3,196.25,5.0946]
[1739609218761,0.03396991,196.3,196.25,5.0946]
[1739609219461,5.12736991,196.3,196.25,13.15201134]
[1739609220557,0.03396991,196.3,196.27,8.05741134]
[1739609220763,0.03396991,196.3,196.27,13.15141134]
[1739609221355,0.03396991,196.3,196.29,5.0937]
[1739609221560,0.03396991,196.3,196.27,8.05741134]
[1739609222266,0.03396991,196.3,196.26,5.0942]
[1739609222863,0.03396991,196.3,196.29,13.15111134]
[1739609224469,1.5754,196.37,196.29,8.05741134]
[1739609224658,1.5754,196.37,196.32,13.15021134]
[1739609225767,0.03598205,196.36,196.33,0.03484685]
[1739609226269,0.03598205,196.36,196.33,5.12744685]
[1739609227360,0.03598205,196.36,196.35,5.0921]
[1739609228165,0.03598205,196.36,196.34,8.05741134]
[1739609228369,0.03598205,196.36,196.33,0.03484685]
[1739609231076,0.03598205,196.36,196.35,5.0921]
[1739609243690,0.03598205,196.36,196.34,13.14981134]
[1739609243988,0.03598205,196.36,196.34,8.05741134]
[1739609244180,0.03598205,196.36,196.35,5.0921]
[1739609244788,0.03598205,196.36,196.34,13.14981134]
[1739609245082,0.03598205,196.36,196.33,0.03484685]
[1739609245282,5.0924,196.35,196.33,0.03484685]
[1739609245786,0.03598205,196.36,196.33,0.03484685]
[1739609246784,0.03598205,196.36,196.34,5.0924]
[1739609248979,0.03598205,196.36,196.34,8.05741134]
[1739609249181,0.03598205,196.36,196.35,5.0921]
[1739609252483,8.205e-05,196.36,196.35,5.0921]
[1739609259893,3.1096,196.44,196.41,5.0905]
[1739609260292,8.1994,196.44,196.4,8.05741134]
[1739609261001,8.2321697,196.44,196.4,8.09408689]
[1739609265003,8.2321697,196.44,196.4,13.18488689]
[1739609265202,3.1423697,196.44,196.4,8.09408689]
[1739609265398,3.1423697,196.44,196.41,5.0905]
[1739609266998,0.0327697,196.44,196.43,5.0901]
[1739609268105,0.0327697,196.44,196.42,8.05741134]
[1739609268294,0.0327697,196.44,196.4,8.09408689]
[1739609269801,5.1228697,196.44,196.4,0.03667555]
[1739609270304,5.0901,196.43,196.4,0.03667555]
[1739609271596,0.0327697,196.44,196.4,0.03667555]
[1739609271597,0.0327697,196.44,196.42,8.05741134]
[1739609272603,0.0327697,196.44,196.43,5.0901]
[1739609280909,6.97e-05,196.44,196.43,5.0901]
[1739609281110,3.2153,196.53,196.42,8.05741134]
[1739609281410,3.2153,196.53,196.5,8.05741134]
[1739609281808,3.2153,196.53,196.5,13.14541134]
[1739609282216,5.0878,196.52,196.48,8.05741134]
[1739609282415,5.0878,196.52,196.5,0.03300899]
[1739609282913,3.24857158,196.53,196.5,0.03300899]
[1739609282914,11.30598292,196.53,196.5,0.03300899]
[1739609283104,5.088,196.51,196.46,8.05741134]
[1739609283913,11.30598292,196.53,196.46,8.05741134]
[1739609284208,5.0883,196.5,196.48,0.03483279]
[1739609284815,8.05741134,196.51,196.44,8.05741134]
[1739609285015,5.089,196.48,196.44,8.05741134]
[1739609285217,8.05741134,196.49,196.42,8.05741134]
[1739609285417,3.2153,196.53,196.4,8.05741134]
[1739609285418,8.05741134,196.47,196.4,8.05741134]
[1739609285914,1.5054,196.46,196.4,8.05741134]
[1739609286119,0.03701457,196.45,196.42,0.03575682]
[1739609286314,5.0904,196.42,196.38,8.05741134]
[1739609286515,8.05741134,196.43,196.38,8.05741134]
[1739609286916,5.0909,196.4,196.37,41.65820894]
[1739609287118,8.05741134,196.41,196.37,41.65820894]
[1739609287413,8.05741134,196.41,196.37,39.17710894]
[1739609287619,8.09114952,196.41,196.37,39.17710894]
[1739609288119,5.0915,196.38,196.34,8.05741134]
[1739609288319,8.05741134,196.39,196.32,8.05741134]
[1739609288519,13.14911134,196.37,196.32,8.05741134]
[1739609288719,13.18124969,196.37,196.32,8.05741134]
[1739609289014,5.12383835,196.37,196.32,8.05741134]
[1739609289213,0.03213835,196.37,196.32,8.05741134]
[1739609289518,5.092,196.36,196.32,8.05741134]
[1739609289814,0.03213835,196.37,196.32,8.05741134]
[1739609293316,0.03213835,196.37,196.34,8.05741134]
[1739609293819,0.03213835,196.37,196.34,13.14981134]
[1739609296526,0.03213835,196.37,196.35,5.0921]
[1739609298321,0.03213835,196.37,196.34,13.14981134]
[1739609298723,0.03213835,196.37,196.35,5.0921]
[1739609300127,0.03213835,196.37,196.36,13.14931134]
[1739609300727,0.03213835,196.37,196.36,8.05741134]
[1739609301816,0.03213835,196.37,196.36,13.14931134]
[1739609305429,0.03213835,196.37,196.36,8.05741134]
[1739609305828,0.03213835,196.37,196.34,8.05741134]
[1739609306029,0.03213835,196.37,196.32,8.05741134]
[1739609306428,5.12393835,196.37,196.32,8.05741134]
[1739609306931,5.12393835,196.37,196.33,5.0926]
[1739609307328,0.03213835,196.37,196.34,5.0923]
[1739609307531,0.03213835,196.37,196.34,13.14971134]
[1739609307827,0.03213835,196.37,196.34,8.05741134]
[1739609308628,0.03213835,196.37,196.35,5.0921]
[1739609310129,0.03213835,196.37,196.34,13.14981134]
[1739609310428,0.03213835,196.37,196.34,8.05741134]
[1739609311031,0.03213835,196.37,196.35,5.0921]
[1739609311428,0.03213835,196.37,196.34,8.05741134]
[1739609311729,0.03213835,196.37,196.36,13.14931134]
[1739609320738,0.03213835,196.37,196.36,8.05741134]
[1739609322941,0.03213835,196.37,196.36,13.14931134]
[1739609323944,0.03213835,196.37,196.34,8.05741134]